[Event "December 19 Early 2023"]
[Site "https://www.chess.com"]
[Date "2023.12.19"]
[Round "5"]
[White "Hua, Lefong"]
[Black "Teterev, Vitaly"]
[Result "0-1"]
[Board "73"]
[TimeControl "180+1"]
[WhiteFideId "2602253"]
[BlackFideId "13501429"]
[WhiteElo "2700"]
[BlackElo "2299"]
[WhiteTeam "CAN"]
[BlackTeam "BLR"]
[WhiteClock "0:00:14"]
[BlackClock "0:00:26"]

1. d4 {[%clk 0:03:00]}  Nf6 {[%clk 0:02:59]} 2. c4 {[%clk 0:03:01]}  g6 {[%clk 0:02:59]} 3. Nc3 {[%clk 0:03:01]}  Bg7 {[%clk 0:03:00]} 4. e4 {[%clk 0:03:01]}  O-O {[%clk 0:03:00]} 5. f4 {[%clk 0:03:01]}  d6 {[%clk 0:03:00]} 6. Nf3 {[%clk 0:03:02]}  c5 {[%clk 0:03:00]} 7. d5 {[%clk 0:03:02]}  e6 {[%clk 0:03:00]} 8. Be2 {[%clk 0:03:02]}  exd5 {[%clk 0:03:00]} 9. cxd5 {[%clk 0:03:03]}  Bg4 {[%clk 0:02:59]} 10. O-O {[%clk 0:03:02]}  Nbd7 {[%clk 0:02:24]} 11. Re1 {[%clk 0:03:02]}  Re8 {[%clk 0:02:22]} 12. h3 {[%clk 0:03:02]}  Bxf3 {[%clk 0:02:22]} 13. Bxf3 {[%clk 0:03:03]}  a6 {[%clk 0:02:18]} 14. Be3 {[%clk 0:03:01]}  b5 {[%clk 0:02:16]} 15. Bf2 {[%clk 0:02:59]}  b4 {[%clk 0:01:54]} 16. Na4 {[%clk 0:02:59]}  Rc8 {[%clk 0:01:32]} 17. Rc1 {[%clk 0:02:52]}  h5 {[%clk 0:01:12]} 18. g4 {[%clk 0:02:49]}  hxg4 {[%clk 0:01:08]} 19. hxg4 {[%clk 0:02:50]}  g5 {[%clk 0:01:08]} 20. f5 {[%clk 0:02:16]}  Ne5 {[%clk 0:01:06]} 21. Kg2 {[%clk 0:02:14]}  Rc7 {[%clk 0:00:55]} 22. Bg3 {[%clk 0:00:55]}  Rce7 {[%clk 0:00:54]} 23. Bxe5 {[%clk 0:00:55]}  Rxe5 {[%clk 0:00:54]} 24. Rc4 {[%clk 0:00:55]}  Nxd5 {[%clk 0:00:51]} 25. Rh1 {[%clk 0:00:47]}  Nf4+ {[%clk 0:00:50]} 26. Kg3 {[%clk 0:00:47]}  d5 {[%clk 0:00:50]} 27. exd5 {[%clk 0:00:42]}  Qd6 {[%clk 0:00:43]} 28. Rxc5 {[%clk 0:00:28]}  Re1 {[%clk 0:00:39]} 29. Rxe1 {[%clk 0:00:20]}  Ne2+ {[%clk 0:00:27]} 30. Kf2 {[%clk 0:00:14]}  Qg3+ {[%clk 0:00:26]} 0-1

[Event "December 19 Early 2023"]
[Site "https://www.chess.com"]
[Date "2023.12.19"]
[Round "5"]
[White "JonaszBaum"]
[Black "Zimmermann, Ulrich"]
[Result "1-0"]
[Board "75"]
[TimeControl "180+1"]
[BlackFideId "24654523"]
[WhiteElo "2692"]
[BlackElo "2223"]
[BlackTeam "GER"]
[WhiteClock "0:00:09"]
[BlackClock "0:00:02"]

1. c4 {[%clk 0:02:56]}  Nf6 {[%clk 0:03:00]} 2. Nf3 {[%clk 0:02:56]}  e6 {[%clk 0:03:01]} 3. g3 {[%clk 0:02:56]}  d5 {[%clk 0:03:02]} 4. d4 {[%clk 0:02:55]}  a6 {[%clk 0:03:01]} 5. Nbd2 {[%clk 0:02:54]}  dxc4 {[%clk 0:02:59]} 6. Nxc4 {[%clk 0:02:55]}  b5 {[%clk 0:02:59]} 7. Nce5 {[%clk 0:02:56]}  Bb7 {[%clk 0:02:59]} 8. Bg2 {[%clk 0:02:56]}  c5 {[%clk 0:02:57]} 9. Nxf7 {[%clk 0:02:55]}  Kxf7 {[%clk 0:02:45]} 10. Ng5+ {[%clk 0:02:43]}  Ke7 {[%clk 0:02:41]} 11. Bxb7 {[%clk 0:02:43]}  Ra7 {[%clk 0:02:40]} 12. Bg2 {[%clk 0:02:35]}  Qxd4 {[%clk 0:02:38]} 13. Qc2 {[%clk 0:02:13]}  Nbd7 {[%clk 0:02:26]} 14. O-O {[%clk 0:02:10]}  h6 {[%clk 0:02:23]} 15. Be3 {[%clk 0:02:03]}  Qc4 {[%clk 0:01:55]} 16. Qxc4 {[%clk 0:02:02]}  bxc4 {[%clk 0:01:56]} 17. Nf3 {[%clk 0:01:58]}  Nd5 {[%clk 0:01:56]} 18. Bd2 {[%clk 0:01:44]}  Rb7 {[%clk 0:01:55]} 19. Rab1 {[%clk 0:01:34]}  g5 {[%clk 0:01:49]} 20. Rfc1 {[%clk 0:01:33]}  Bg7 {[%clk 0:01:47]} 21. e4 {[%clk 0:01:21]}  Nb4 {[%clk 0:01:32]} 22. Rxc4 {[%clk 0:01:19]}  Nxa2 {[%clk 0:01:23]} 23. e5 {[%clk 0:01:04]}  Rhb8 {[%clk 0:01:16]} 24. Nxg5 {[%clk 0:00:41]}  Rxb2 {[%clk 0:00:59]} 25. Rxb2 {[%clk 0:00:41]}  Rxb2 {[%clk 0:01:00]} 26. Nf3 {[%clk 0:00:31]}  Nxe5 {[%clk 0:00:59]} 27. Nxe5 {[%clk 0:00:28]}  Bxe5 {[%clk 0:01:00]} 28. Be3 {[%clk 0:00:25]}  Bd4 {[%clk 0:00:40]} 29. Bxd4 {[%clk 0:00:25]}  cxd4 {[%clk 0:00:38]} 30. Rxd4 {[%clk 0:00:26]}  Nb4 {[%clk 0:00:38]} 31. Rh4 {[%clk 0:00:18]}  a5 {[%clk 0:00:32]} 32. Rxh6 {[%clk 0:00:18]}  a4 {[%clk 0:00:32]} 33. Rh7+ {[%clk 0:00:19]}  Kd6 {[%clk 0:00:32]} 34. Ra7 {[%clk 0:00:20]}  Ra2 {[%clk 0:00:32]} 35. h4 {[%clk 0:00:20]}  a3 {[%clk 0:00:32]} 36. h5 {[%clk 0:00:20]}  Ra1+ {[%clk 0:00:32]} 37. Kh2 {[%clk 0:00:20]}  a2 {[%clk 0:00:33]} 38. h6 {[%clk 0:00:17]}  Rc1 {[%clk 0:00:31]} 39. h7 {[%clk 0:00:17]}  Rc8 {[%clk 0:00:21]} 40. g4 {[%clk 0:00:16]}  Ke5 {[%clk 0:00:20]} 41. Kg3 {[%clk 0:00:16]}  Rh8 {[%clk 0:00:19]} 42. f4+ {[%clk 0:00:15]}  Kd4 {[%clk 0:00:18]} 43. Ra4 {[%clk 0:00:10]}  Kc3 {[%clk 0:00:17]} 44. Be4 {[%clk 0:00:10]}  Kb3 {[%clk 0:00:16]} 45. Ra7 {[%clk 0:00:09]}  Kb2 {[%clk 0:00:16]} 46. g5 {[%clk 0:00:09]}  a1=Q {[%clk 0:00:07]} 47. Rxa1 {[%clk 0:00:08]}  Kxa1 {[%clk 0:00:08]} 48. g6 {[%clk 0:00:09]}  Rc8 {[%clk 0:00:04]} 49. g7 {[%clk 0:00:09]}  Rc3+ {[%clk 0:00:05]} 50. Kg4 {[%clk 0:00:09]}  Rc7 {[%clk 0:00:06]} 51. h8=Q {[%clk 0:00:09]}  e5 {[%clk 0:00:05]} 52. g8=Q {[%clk 0:00:10]}  Nc6 {[%clk 0:00:02]} 53. Bxc6 {[%clk 0:00:09]} 1-0

[Event "December 19 Early 2023"]
[Site "https://www.chess.com"]
[Date "2023.12.19"]
[Round "5"]
[White "Agibileg, Uurtsaikh"]
[Black "Dinu, Dumitru-Daniel"]
[Result "1-0"]
[Board "76"]
[TimeControl "180+1"]
[WhiteFideId "4901606"]
[BlackFideId "1208403"]
[WhiteElo "2288"]
[BlackElo "2240"]
[WhiteTeam "MGL"]
[BlackTeam "ROU"]
[WhiteClock "0:01:05"]
[BlackClock "0:00:06"]

1. d4 {[%clk 0:03:00]}  Nf6 {[%clk 0:02:59]} 2. c4 {[%clk 0:03:00]}  e6 {[%clk 0:02:59]} 3. Nc3 {[%clk 0:02:59]}  Bb4 {[%clk 0:02:58]} 4. f3 {[%clk 0:02:59]}  d5 {[%clk 0:02:48]} 5. a3 {[%clk 0:02:58]}  Bxc3+ {[%clk 0:02:46]} 6. bxc3 {[%clk 0:02:59]}  c5 {[%clk 0:02:46]} 7. cxd5 {[%clk 0:03:00]}  Nxd5 {[%clk 0:02:46]} 8. dxc5 {[%clk 0:03:00]}  f5 {[%clk 0:02:42]} 9. Nh3 {[%clk 0:02:57]}  Qa5 {[%clk 0:02:35]} 10. e4 {[%clk 0:02:57]}  fxe4 {[%clk 0:02:28]} 11. fxe4 {[%clk 0:02:58]}  Nf6 {[%clk 0:02:28]} 12. Be2 {[%clk 0:02:58]}  O-O {[%clk 0:02:23]} 13. O-O {[%clk 0:02:55]}  Qxc3 {[%clk 0:02:21]} 14. Bf4 {[%clk 0:02:44]}  Qxc5+ {[%clk 0:02:18]} 15. Kh1 {[%clk 0:02:44]}  e5 {[%clk 0:02:06]} 16. Rc1 {[%clk 0:02:37]}  Qe7 {[%clk 0:02:01]} 17. Be3 {[%clk 0:02:16]}  b6 {[%clk 0:01:46]} 18. Rxf6 {[%clk 0:02:08]}  Qxf6 {[%clk 0:01:25]} 19. Qd5+ {[%clk 0:02:08]}  Be6 {[%clk 0:01:16]} 20. Qxa8 {[%clk 0:02:07]}  Qe7 {[%clk 0:00:30]} 21. Ng5 {[%clk 0:01:20]}  Qxa3 {[%clk 0:00:17]} 22. Nxe6 {[%clk 0:01:20]}  Qxe3 {[%clk 0:00:17]} 23. Rg1 {[%clk 0:01:21]}  Re8 {[%clk 0:00:16]} 24. Nc7 {[%clk 0:01:14]}  Rf8 {[%clk 0:00:13]} 25. Qd5+ {[%clk 0:01:12]}  Kh8 {[%clk 0:00:12]} 26. Ne6 {[%clk 0:01:12]}  Rg8 {[%clk 0:00:11]} 27. Nd8 {[%clk 0:01:12]}  h6 {[%clk 0:00:07]} 28. Bh5 {[%clk 0:01:09]}  Qg5 {[%clk 0:00:04]} 29. Nf7+ {[%clk 0:01:07]}  Kh7 {[%clk 0:00:05]} 30. Nxg5+ {[%clk 0:01:05]}  hxg5 {[%clk 0:00:06]} 1-0

[Event "December 19 Early 2023"]
[Site "https://www.chess.com"]
[Date "2023.12.19"]
[Round "5"]
[White "Gontcharov, Vladislav"]
[Black "Buksa, Nataliya"]
[Result "1/2-1/2"]
[Board "77"]
[TimeControl "180+1"]
[WhiteFideId "4123492"]
[BlackFideId "14123622"]
[WhiteElo "2420"]
[BlackElo "2316"]
[WhiteTeam "RUS"]
[BlackTeam "UKR"]
[WhiteClock "0:00:13"]
[BlackClock "0:00:05"]

1. d4 {[%clk 0:03:00]}  d5 {[%clk 0:02:49]} 2. c4 {[%clk 0:03:00]}  e6 {[%clk 0:02:48]} 3. Nc3 {[%clk 0:02:59]}  Nf6 {[%clk 0:02:47]} 4. cxd5 {[%clk 0:02:59]}  exd5 {[%clk 0:02:48]} 5. Bg5 {[%clk 0:02:58]}  Bb4 {[%clk 0:02:48]} 6. e3 {[%clk 0:02:53]}  h6 {[%clk 0:02:47]} 7. Bh4 {[%clk 0:02:45]}  g5 {[%clk 0:02:46]} 8. Bg3 {[%clk 0:02:45]}  h5 {[%clk 0:02:47]} 9. Rc1 {[%clk 0:02:31]}  h4 {[%clk 0:02:37]} 10. Be5 {[%clk 0:02:26]}  Nbd7 {[%clk 0:02:38]} 11. Qa4 {[%clk 0:02:23]}  Bxc3+ {[%clk 0:02:30]} 12. Rxc3 {[%clk 0:02:22]}  c6 {[%clk 0:02:31]} 13. Bd3 {[%clk 0:01:58]}  Nxe5 {[%clk 0:02:24]} 14. dxe5 {[%clk 0:01:57]}  Ng4 {[%clk 0:02:25]} 15. Nf3 {[%clk 0:01:53]}  Qe7 {[%clk 0:02:22]} 16. Qd4 {[%clk 0:01:52]}  Be6 {[%clk 0:02:20]} 17. b4 {[%clk 0:01:46]}  h3 {[%clk 0:02:14]} 18. g3 {[%clk 0:01:42]}  a6 {[%clk 0:02:08]} 19. a4 {[%clk 0:01:37]}  Nh6 {[%clk 0:02:08]} 20. O-O {[%clk 0:01:33]}  Nf5 {[%clk 0:02:06]} 21. Bxf5 {[%clk 0:01:32]}  Bxf5 {[%clk 0:02:06]} 22. Qc5 {[%clk 0:01:28]}  Qxc5 {[%clk 0:01:50]} 23. Rxc5 {[%clk 0:01:28]}  g4 {[%clk 0:01:50]} 24. Nd4 {[%clk 0:01:27]}  Bd3 {[%clk 0:01:48]} 25. Rd1 {[%clk 0:01:19]}  Bc4 {[%clk 0:01:47]} 26. a5 {[%clk 0:01:15]}  Ke7 {[%clk 0:01:44]} 27. e4 {[%clk 0:01:14]}  Rh5 {[%clk 0:01:34]} 28. Nf5+ {[%clk 0:01:06]}  Kf8 {[%clk 0:01:33]} 29. f4 {[%clk 0:00:50]}  gxf3 {[%clk 0:00:59]} 30. Kf2 {[%clk 0:00:48]}  Be2 {[%clk 0:00:58]} 31. Rd4 {[%clk 0:00:44]}  dxe4 {[%clk 0:00:57]} 32. g4 {[%clk 0:00:40]}  Rg5 {[%clk 0:00:51]} 33. Rxe4 {[%clk 0:00:40]}  Rd8 {[%clk 0:00:51]} 34. Nd6 {[%clk 0:00:39]}  Rd7 {[%clk 0:00:51]} 35. Rf4 {[%clk 0:00:25]}  Kg8 {[%clk 0:00:51]} 36. Kg3 {[%clk 0:00:22]}  Re7 {[%clk 0:00:46]} 37. Nf5 {[%clk 0:00:21]}  Rd7 {[%clk 0:00:44]} 38. Kxh3 {[%clk 0:00:21]}  f2 {[%clk 0:00:19]} 39. Rxf2 {[%clk 0:00:21]}  Bxg4+ {[%clk 0:00:20]} 40. Kh4 {[%clk 0:00:21]}  Rg6 {[%clk 0:00:14]} 41. Nh6+ {[%clk 0:00:19]}  Rxh6+ {[%clk 0:00:12]} 42. Kxg4 {[%clk 0:00:20]}  Rd4+ {[%clk 0:00:13]} 43. Rf4 {[%clk 0:00:20]}  Rxf4+ {[%clk 0:00:13]} 44. Kxf4 {[%clk 0:00:20]}  Rh4+ {[%clk 0:00:13]} 45. Kf5 {[%clk 0:00:19]}  Rxb4 {[%clk 0:00:14]} 46. Rc2 {[%clk 0:00:18]}  Rb5 {[%clk 0:00:13]} 47. Rd2 {[%clk 0:00:18]}  Rxa5 {[%clk 0:00:13]} 48. Kf6 {[%clk 0:00:17]}  Rd5 {[%clk 0:00:12]} 49. Rg2+ {[%clk 0:00:17]}  Kf8 {[%clk 0:00:12]} 50. Rg7 {[%clk 0:00:17]}  Rd2 {[%clk 0:00:08]} 51. Rxf7+ {[%clk 0:00:17]}  Ke8 {[%clk 0:00:08]} 52. Rxb7 {[%clk 0:00:17]}  Rxh2 {[%clk 0:00:07]} 53. Ke6 {[%clk 0:00:17]}  Rh6+ {[%clk 0:00:07]} 54. Kf5 {[%clk 0:00:17]}  c5 {[%clk 0:00:07]} 55. Ke4 {[%clk 0:00:15]}  a5 {[%clk 0:00:03]} 56. Kd5 {[%clk 0:00:15]}  a4 {[%clk 0:00:04]} 57. e6 {[%clk 0:00:14]}  Rh1 {[%clk 0:00:01]} 58. Rb8+ {[%clk 0:00:14]}  Ke7 {[%clk 0:00:01]} 59. Rb7+ {[%clk 0:00:14]}  Ke8 {[%clk 0:00:02]} 60. Kxc5 {[%clk 0:00:13]}  Rc1+ {[%clk 0:00:02]} 61. Kd6 {[%clk 0:00:13]}  Rd1+ {[%clk 0:00:02]} 62. Ke5 {[%clk 0:00:14]}  Re1+ {[%clk 0:00:02]} 63. Kf6 {[%clk 0:00:14]}  Rf1+ {[%clk 0:00:02]} 64. Ke5 {[%clk 0:00:13]}  Re1+ {[%clk 0:00:03]} 65. Kd5 {[%clk 0:00:14]}  a3 {[%clk 0:00:02]} 66. Ra7 {[%clk 0:00:12]}  Rd1+ {[%clk 0:00:02]} 67. Ke5 {[%clk 0:00:12]}  Re1+ {[%clk 0:00:03]} 68. Kf6 {[%clk 0:00:12]}  Rf1+ {[%clk 0:00:03]} 69. Ke5 {[%clk 0:00:12]}  Re1+ {[%clk 0:00:04]} 70. Kf6 {[%clk 0:00:13]}  Rf1+ {[%clk 0:00:04]} 71. Ke5 {[%clk 0:00:13]}  Re1+ {[%clk 0:00:05]} 1/2-1/2

[Event "December 19 Early 2023"]
[Site "https://www.chess.com"]
[Date "2023.12.19"]
[Round "5"]
[White "Kurmangaliyeva, Liya"]
[Black "Ovetchkin, Roman"]
[Result "0-1"]
[Board "78"]
[TimeControl "180+1"]
[WhiteFideId "13725831"]
[BlackFideId "4119991"]
[WhiteElo "2077"]
[BlackElo "2381"]
[WhiteTeam "KAZ"]
[BlackTeam "RUS"]
[WhiteClock "0:00:11"]
[BlackClock "0:00:14"]

1. d4 {[%clk 0:02:56]}  Nf6 {[%clk 0:02:59]} 2. Nf3 {[%clk 0:02:56]}  g6 {[%clk 0:02:58]} 3. Nbd2 {[%clk 0:02:55]}  Bg7 {[%clk 0:02:58]} 4. e4 {[%clk 0:02:55]}  d6 {[%clk 0:02:57]} 5. Bd3 {[%clk 0:02:53]}  O-O {[%clk 0:02:57]} 6. O-O {[%clk 0:02:52]}  c5 {[%clk 0:02:57]} 7. c3 {[%clk 0:02:43]}  cxd4 {[%clk 0:02:52]} 8. cxd4 {[%clk 0:02:43]}  Nc6 {[%clk 0:02:50]} 9. h3 {[%clk 0:02:42]}  Nh5 {[%clk 0:02:42]} 10. Nb3 {[%clk 0:02:40]}  e5 {[%clk 0:02:40]} 11. Bg5 {[%clk 0:02:25]}  Qb6 {[%clk 0:01:51]} 12. d5 {[%clk 0:02:17]}  Nb4 {[%clk 0:01:46]} 13. Be2 {[%clk 0:02:05]}  Nf4 {[%clk 0:01:37]} 14. Bxf4 {[%clk 0:01:55]}  exf4 {[%clk 0:01:37]} 15. Qd2 {[%clk 0:01:52]}  a5 {[%clk 0:01:21]} 16. Nbd4 {[%clk 0:01:44]}  Na6 {[%clk 0:01:17]} 17. Nb5 {[%clk 0:01:38]}  Bd7 {[%clk 0:01:15]} 18. a4 {[%clk 0:01:32]}  Nc5 {[%clk 0:00:55]} 19. Qxf4 {[%clk 0:01:31]}  Nxa4 {[%clk 0:00:43]} 20. Qxd6 {[%clk 0:01:15]}  Qxd6 {[%clk 0:00:38]} 21. Nxd6 {[%clk 0:01:15]}  Bxb2 {[%clk 0:00:34]} 22. Rab1 {[%clk 0:01:10]}  Ba3 {[%clk 0:00:35]} 23. Nc4 {[%clk 0:00:57]}  Bb4 {[%clk 0:00:33]} 24. Bd3 {[%clk 0:00:47]}  b5 {[%clk 0:00:31]} 25. Nce5 {[%clk 0:00:44]}  Be8 {[%clk 0:00:28]} 26. Nd4 {[%clk 0:00:39]}  Nc3 {[%clk 0:00:26]} 27. Rbc1 {[%clk 0:00:34]}  Rc8 {[%clk 0:00:17]} 28. Nec6 {[%clk 0:00:34]}  Bxc6 {[%clk 0:00:16]} 29. Nxc6 {[%clk 0:00:34]}  Rxc6 {[%clk 0:00:16]} 30. dxc6 {[%clk 0:00:34]}  Rc8 {[%clk 0:00:17]} 31. Rc2 {[%clk 0:00:29]}  Rxc6 {[%clk 0:00:16]} 32. Bxb5 {[%clk 0:00:29]}  Rc5 {[%clk 0:00:17]} 33. Bd3 {[%clk 0:00:24]}  a4 {[%clk 0:00:15]} 34. Ra1 {[%clk 0:00:25]}  a3 {[%clk 0:00:16]} 35. Kf1 {[%clk 0:00:25]}  g5 {[%clk 0:00:15]} 36. f3 {[%clk 0:00:23]}  h5 {[%clk 0:00:15]} 37. Kf2 {[%clk 0:00:23]}  h4 {[%clk 0:00:16]} 38. Ke3 {[%clk 0:00:23]}  Kg7 {[%clk 0:00:16]} 39. f4 {[%clk 0:00:17]}  gxf4+ {[%clk 0:00:15]} 40. Kxf4 {[%clk 0:00:17]}  Kf6 {[%clk 0:00:15]} 41. Kg4 {[%clk 0:00:17]}  Rg5+ {[%clk 0:00:14]} 42. Kf3 {[%clk 0:00:17]}  Rg3+ {[%clk 0:00:14]} 43. Kf4 {[%clk 0:00:13]}  Bd6+ {[%clk 0:00:14]} 44. e5+ {[%clk 0:00:11]}  Bxe5# {[%clk 0:00:14]} 0-1

[Event "December 19 Early 2023"]
[Site "https://www.chess.com"]
[Date "2023.12.19"]
[Round "5"]
[White "Puzzlebot_1294"]
[Black "Porozhnyak, Maya"]
[Result "1-0"]
[Board "79"]
[TimeControl "180+1"]
[BlackFideId "34115843"]
[WhiteElo "2654"]
[BlackElo "1932"]
[BlackTeam "RUS"]
[WhiteClock "0:01:06"]
[BlackClock "0:00:09"]

1. d4 {[%clk 0:03:00]}  c5 {[%clk 0:03:00]} 2. d5 {[%clk 0:03:00]}  g6 {[%clk 0:03:00]} 3. Nc3 {[%clk 0:02:58]}  Bg7 {[%clk 0:02:59]} 4. e4 {[%clk 0:02:58]}  a6 {[%clk 0:02:59]} 5. a4 {[%clk 0:02:58]}  b6 {[%clk 0:02:59]} 6. Nf3 {[%clk 0:02:58]}  d6 {[%clk 0:03:00]} 7. Be2 {[%clk 0:02:58]}  Nf6 {[%clk 0:02:58]} 8. O-O {[%clk 0:02:59]}  O-O {[%clk 0:02:58]} 9. h3 {[%clk 0:02:56]}  Nbd7 {[%clk 0:02:58]} 10. Be3 {[%clk 0:02:56]}  Ne8 {[%clk 0:02:58]} 11. Nd2 {[%clk 0:02:55]}  Nc7 {[%clk 0:02:57]} 12. f4 {[%clk 0:02:54]}  Rb8 {[%clk 0:02:55]} 13. Nc4 {[%clk 0:02:53]}  Bb7 {[%clk 0:02:52]} 14. Qd2 {[%clk 0:02:48]}  b5 {[%clk 0:02:45]} 15. axb5 {[%clk 0:02:29]}  axb5 {[%clk 0:02:46]} 16. Na5 {[%clk 0:02:29]}  b4 {[%clk 0:02:45]} 17. Nxb7 {[%clk 0:02:30]}  Rxb7 {[%clk 0:02:46]} 18. Nd1 {[%clk 0:02:29]}  Nb5 {[%clk 0:02:38]} 19. Bxb5 {[%clk 0:02:27]}  Rxb5 {[%clk 0:02:38]} 20. c3 {[%clk 0:02:26]}  Qb8 {[%clk 0:02:28]} 21. c4 {[%clk 0:02:25]}  Rb7 {[%clk 0:02:27]} 22. Nf2 {[%clk 0:02:25]}  Nb6 {[%clk 0:02:25]} 23. Rac1 {[%clk 0:02:22]}  Ra7 {[%clk 0:02:21]} 24. e5 {[%clk 0:02:21]}  Ra2 {[%clk 0:02:17]} 25. Nd3 {[%clk 0:02:02]}  Qa7 {[%clk 0:02:10]} 26. f5 {[%clk 0:01:53]}  gxf5 {[%clk 0:01:09]} 27. Rxf5 {[%clk 0:01:30]}  Qd7 {[%clk 0:00:57]} 28. Rh5 {[%clk 0:01:14]}  Rfa8 {[%clk 0:00:39]} 29. Bh6 {[%clk 0:01:07]}  Ra1 {[%clk 0:00:11]} 30. Qg5 {[%clk 0:01:04]}  Rxc1+ {[%clk 0:00:10]} 31. Nxc1 {[%clk 0:01:05]}  Kf8 {[%clk 0:00:08]} 32. Qxg7+ {[%clk 0:01:05]}  Ke8 {[%clk 0:00:09]} 33. Qg8# {[%clk 0:01:06]} 1-0

[Event "December 19 Early 2023"]
[Site "https://www.chess.com"]
[Date "2023.12.19"]
[Round "5"]
[White "Graca, Robert"]
[Black "Miszler, Levente"]
[Result "0-1"]
[Board "81"]
[TimeControl "180+1"]
[WhiteFideId "644943"]
[BlackFideId "763276"]
[WhiteElo "2204"]
[BlackElo "2186"]
[WhiteTeam "FRA"]
[BlackTeam "HUN"]
[WhiteClock "0:00:00"]
[BlackClock "0:00:49"]

1. Nf3 {[%clk 0:02:57]}  c5 {[%clk 0:02:56]} 2. c4 {[%clk 0:02:57]}  Nc6 {[%clk 0:02:56]} 3. d4 {[%clk 0:02:57]}  cxd4 {[%clk 0:02:55]} 4. Nxd4 {[%clk 0:02:58]}  Nf6 {[%clk 0:02:55]} 5. Nc3 {[%clk 0:02:58]}  g6 {[%clk 0:02:55]} 6. g3 {[%clk 0:02:58]}  Bg7 {[%clk 0:02:55]} 7. Nc2 {[%clk 0:02:59]}  O-O {[%clk 0:02:55]} 8. Bg2 {[%clk 0:02:59]}  d6 {[%clk 0:02:56]} 9. O-O {[%clk 0:03:00]}  a6 {[%clk 0:02:56]} 10. b3 {[%clk 0:02:59]}  Bd7 {[%clk 0:02:56]} 11. Bb2 {[%clk 0:02:57]}  Rb8 {[%clk 0:02:57]} 12. Qd2 {[%clk 0:02:57]}  b5 {[%clk 0:02:57]} 13. cxb5 {[%clk 0:02:56]}  axb5 {[%clk 0:02:58]} 14. Rfd1 {[%clk 0:02:57]}  b4 {[%clk 0:02:58]} 15. Nd5 {[%clk 0:02:55]}  Nxd5 {[%clk 0:02:57]} 16. Bxg7 {[%clk 0:02:55]}  Kxg7 {[%clk 0:02:57]} 17. Bxd5 {[%clk 0:02:55]}  Qb6 {[%clk 0:02:56]} 18. Ne3 {[%clk 0:02:52]}  Rfc8 {[%clk 0:02:56]} 19. Bg2 {[%clk 0:02:49]}  Ne5 {[%clk 0:02:55]} 20. Nd5 {[%clk 0:02:49]}  Qd8 {[%clk 0:02:51]} 21. Nxb4 {[%clk 0:02:34]}  Qa5 {[%clk 0:02:49]} 22. Nd3 {[%clk 0:02:29]}  Qxd2 {[%clk 0:02:49]} 23. Rxd2 {[%clk 0:02:28]}  Nxd3 {[%clk 0:02:49]} 24. Rxd3 {[%clk 0:02:29]}  Rc2 {[%clk 0:02:49]} 25. Re3 {[%clk 0:02:24]}  e5 {[%clk 0:02:49]} 26. a4 {[%clk 0:02:01]}  f5 {[%clk 0:02:34]} 27. Rd3 {[%clk 0:01:49]}  Rxe2 {[%clk 0:02:31]} 28. Rxd6 {[%clk 0:01:48]}  Be8 {[%clk 0:02:28]} 29. Bd5 {[%clk 0:01:44]}  Rd2 {[%clk 0:02:19]} 30. a5 {[%clk 0:01:26]}  Bf7 {[%clk 0:02:19]} 31. Bxf7 {[%clk 0:01:00]}  Rxd6 {[%clk 0:02:18]} 32. Bc4 {[%clk 0:01:01]}  Rd7 {[%clk 0:02:06]} 33. a6 {[%clk 0:01:00]}  Ra7 {[%clk 0:02:07]} 34. Kg2 {[%clk 0:00:54]}  Kf6 {[%clk 0:02:07]} 35. h4 {[%clk 0:00:46]}  Ke7 {[%clk 0:02:06]} 36. Ra5 {[%clk 0:00:44]}  e4 {[%clk 0:02:05]} 37. Re5+ {[%clk 0:00:44]}  Kd6 {[%clk 0:02:05]} 38. Re6+ {[%clk 0:00:44]}  Kc5 {[%clk 0:02:05]} 39. Rf6 {[%clk 0:00:43]}  Rb6 {[%clk 0:02:01]} 40. Rf8 {[%clk 0:00:24]}  Kb4 {[%clk 0:02:01]} 41. h5 {[%clk 0:00:23]}  Rc6 {[%clk 0:01:50]} 42. h6 {[%clk 0:00:18]}  Kc3 {[%clk 0:01:13]} 43. Rg8 {[%clk 0:00:16]}  Rcc7 {[%clk 0:01:14]} 44. Rb8 {[%clk 0:00:11]}  g5 {[%clk 0:01:12]} 45. Rf8 {[%clk 0:00:11]}  f4 {[%clk 0:01:11]} 46. gxf4 {[%clk 0:00:11]}  gxf4 {[%clk 0:01:12]} 47. Rxf4 {[%clk 0:00:11]}  Rc6 {[%clk 0:01:12]} 48. Rxe4 {[%clk 0:00:10]}  Rxh6 {[%clk 0:01:12]} 49. f4 {[%clk 0:00:10]}  Rg7+ {[%clk 0:01:11]} 50. Kf3 {[%clk 0:00:05]}  Rh3+ {[%clk 0:01:10]} 51. Kf2 {[%clk 0:00:05]}  Rh2+ {[%clk 0:01:11]} 52. Kf3 {[%clk 0:00:06]}  Rh3+ {[%clk 0:01:08]} 53. Kf2 {[%clk 0:00:06]}  Rh2+ {[%clk 0:01:09]} 54. Ke1 {[%clk 0:00:05]}  Rg1+ {[%clk 0:01:01]} 55. Bf1 {[%clk 0:00:05]}  Rhh1 {[%clk 0:01:02]} 56. a7 {[%clk 0:00:05]}  Rxf1+ {[%clk 0:01:02]} 57. Ke2 {[%clk 0:00:05]}  Re1+ {[%clk 0:00:58]} 58. Kf3 {[%clk 0:00:03]}  Rhf1+ {[%clk 0:00:56]} 59. Kg4 {[%clk 0:00:04]}  Rg1+ {[%clk 0:00:57]} 60. Kf5 {[%clk 0:00:04]}  Ra1 {[%clk 0:00:57]} 61. Re7 {[%clk 0:00:02]}  Kxb3 {[%clk 0:00:52]} 62. Rxh7 {[%clk 0:00:02]}  Kc4 {[%clk 0:00:51]} 63. Kf6 {[%clk 0:00:02]}  Kd5 {[%clk 0:00:51]} 64. f5 {[%clk 0:00:03]}  Ke4 {[%clk 0:00:50]} 65. Rh4+ {[%clk 0:00:02]}  Kd5 {[%clk 0:00:50]} 66. Rh7 {[%clk 0:00:03]}  Ra6+ {[%clk 0:00:49]} 67. Kf7 {[%clk 0:00:01]}  Rxa7+ {[%clk 0:00:49]} 68. Ke8 {[%clk 0:00:00]}  Rxh7 {[%clk 0:00:49]} 0-1